[Event "2026 European Womens Championship"]
[Site "Batumi, GE"]
[Date "2026.06.03"]
[Round "9"]
[White "Milliet, Sophie"]
[Black "Sieber, Fiona"]
[Result "0-1"]
[Board "18"]
[TimeControl "5400+30"]
[WhiteFideId "623725"]
[BlackFideId "12902373"]
[WhiteElo "2361"]
[BlackElo "2224"]
[WhiteTitle "IM"]
[BlackTitle "WGM"]
[WhiteClock "0:06:57"]
[BlackClock "0:16:17"]
[Variant "Standard"]

1. d4 {[%clk 1:30:56]}  Nf6 {[%clk 1:30:55]} 2. c4 {[%clk 1:31:23]}  e6 {[%clk 1:31:21]} 3. g3 {[%clk 1:31:47]}  d5 {[%clk 1:30:54]}
4. Bg2 {[%clk 1:32:08]}  c6 {[%clk 1:29:09]} 5. Nf3 {[%clk 1:31:54]}  dxc4 {[%clk 1:28:49]} 6. O-O {[%clk 1:31:14]}  b5 {[%clk 1:27:35]}
7. Ne5 {[%clk 1:30:26]}  Bb7 {[%clk 1:26:28]} 8. a4 {[%clk 1:30:13]}  a6 {[%clk 1:21:48]} 9. b3 {[%clk 1:30:20]}  cxb3 {[%clk 1:21:39]}
10. Qxb3 {[%clk 1:30:47]}  Be7 {[%clk 1:20:57]} 11. Rd1 {[%clk 1:26:32]}  O-O {[%clk 1:19:49]} 12. Nc3 {[%clk 1:23:13]}  Qb6 {[%clk 1:11:09]}
13. Bg5 {[%clk 1:04:51]}  h6 {[%clk 1:02:22]} 14. Bxf6 {[%clk 1:01:04]}  gxf6 {[%clk 1:02:33]} 15. Nf3 {[%clk 0:54:23]}  Nd7 {[%clk 1:02:23]}
16. Rac1 {[%clk 0:33:20]}  Rfd8 {[%clk 0:58:00]} 17. g4 {[%clk 0:32:11]}  b4 {[%clk 0:52:18]} 18. Ne4 {[%clk 0:32:26]}  c5 {[%clk 0:52:16]}
19. Qe3 {[%clk 0:28:07]}  cxd4 {[%clk 0:48:47]} 20. Nxd4 {[%clk 0:28:30]}  Ne5 {[%clk 0:47:56]} 21. a5 {[%clk 0:23:36]}  Qa7 {[%clk 0:46:54]}
22. Rc7 {[%clk 0:23:44]}  Rd7 {[%clk 0:37:43]} 23. Rxd7 {[%clk 0:23:05]}  Nxd7 {[%clk 0:38:11]} 24. Qxh6 {[%clk 0:23:16]}  Bf8 {[%clk 0:25:29]}
25. Qh5 {[%clk 0:22:06]}  Bd5 {[%clk 0:13:28]} 26. g5 {[%clk 0:11:17]}  fxg5 {[%clk 0:13:55]} 27. Qxg5+ {[%clk 0:11:31]}  Bg7 {[%clk 0:14:23]}
28. Nd6 {[%clk 0:08:38]}  Ne5 {[%clk 0:04:59]} 29. Bxd5 {[%clk 0:06:07]}  exd5 {[%clk 0:05:28]} 30. N4f5 {[%clk 0:06:15]}  Ng6 {[%clk 0:04:48]}
31. Nxg7 {[%clk 0:06:28]}  Kxg7 {[%clk 0:05:13]} 32. Nf5+ {[%clk 0:06:52]}  Kf8 {[%clk 0:05:27]} 33. Rxd5 {[%clk 0:03:45]}  Qc7 {[%clk 0:05:31]}
34. Qh6+ {[%clk 0:03:33]}  Ke8 {[%clk 0:06:00]} 35. Qe3+ {[%clk 0:02:50]}  Kf8 {[%clk 0:06:15]} 36. Qh6+ {[%clk 0:02:26]}  Ke8 {[%clk 0:06:43]}
37. Rd3 {[%clk 0:02:31]}  Qf4 {[%clk 0:04:37]} 38. Re3+ {[%clk 0:02:55]}  Kd7 {[%clk 0:02:11]} 39. Qh3 {[%clk 0:01:59]}  Kc7 {[%clk 0:02:02]}
40. Qg2 {[%clk 0:01:34]}  Rd8 {[%clk 0:01:57]} 41. Ng3 {[%clk 0:29:15]}  Nh4 {[%clk 0:27:05]} 42. Qf1 {[%clk 0:24:19]}  f5 {[%clk 0:24:45]}
43. Qc1+ {[%clk 0:21:29]}  Kb8 {[%clk 0:25:05]} 44. Qb1 {[%clk 0:15:52]}  Rd7 {[%clk 0:15:44]} 45. Qa2 {[%clk 0:06:10]}  Rd1+ {[%clk 0:15:30]}
46. Nf1 {[%clk 0:06:36]}  Qg5+ {[%clk 0:15:51]} 47. Rg3 {[%clk 0:06:57]}  Rxf1+ {[%clk 0:16:17]} 0-1

[Event "2026 European Womens Championship"]
[Site "Batumi, GE"]
[Date "2026.06.03"]
[Round "9"]
[White "Siekanska, Maria"]
[Black "Socko, Monika"]
[Result "0-1"]
[Board "19"]
[TimeControl "5400+30"]
[WhiteFideId "21852650"]
[BlackFideId "1106619"]
[WhiteElo "2203"]
[BlackElo "2355"]
[WhiteTitle "WIM"]
[BlackTitle "GM"]
[WhiteClock "0:22:05"]
[BlackClock "0:32:11"]
[Variant "Standard"]

1. d4 {[%clk 1:30:58]}  d6 {[%clk 1:30:54]} 2. Nf3 {[%clk 1:31:23]}  g6 {[%clk 1:31:11]} 3. e4 {[%clk 1:31:05]}  Nf6 {[%clk 1:30:07]}
4. Nc3 {[%clk 1:31:29]}  Bg7 {[%clk 1:30:02]} 5. Bc4 {[%clk 1:29:41]}  O-O {[%clk 1:25:54]} 6. O-O {[%clk 1:29:25]}  c6 {[%clk 1:24:15]}
7. a4 {[%clk 1:29:17]}  d5 {[%clk 1:21:19]} 8. Bd3 {[%clk 1:22:15]}  Bg4 {[%clk 1:14:56]} 9. e5 {[%clk 1:14:04]}  Nfd7 {[%clk 1:15:00]}
10. h3 {[%clk 1:11:21]}  Bxf3 {[%clk 1:15:15]} 11. Qxf3 {[%clk 1:11:43]}  e6 {[%clk 1:15:09]} 12. Ne2 {[%clk 1:09:04]}  c5 {[%clk 1:15:34]}
13. c3 {[%clk 1:09:19]}  Nc6 {[%clk 1:15:59]} 14. Qg4 {[%clk 1:03:04]}  cxd4 {[%clk 0:58:08]} 15. cxd4 {[%clk 1:03:22]}  Qb6 {[%clk 0:58:29]}
16. h4 {[%clk 0:53:07]}  Qb4 {[%clk 0:55:24]} 17. f3 {[%clk 0:43:23]}  Ndxe5 {[%clk 0:48:23]} 18. dxe5 {[%clk 0:43:41]}  Qc5+ {[%clk 0:48:43]}
19. Kh1 {[%clk 0:38:42]}  Nxe5 {[%clk 0:49:06]} 20. b4 {[%clk 0:37:23]}  Qc8 {[%clk 0:48:37]} 21. Qg3 {[%clk 0:32:57]}  Nxd3 {[%clk 0:48:35]}
22. Ra3 {[%clk 0:32:33]}  Qc2 {[%clk 0:43:29]} 23. f4 {[%clk 0:29:49]}  Nxb4 {[%clk 0:43:17]} 24. Ng1 {[%clk 0:27:33]}  Rac8 {[%clk 0:41:46]}
25. h5 {[%clk 0:26:54]}  d4 {[%clk 0:36:57]} 26. Nf3 {[%clk 0:26:52]}  Rfd8 {[%clk 0:33:47]} 27. Qh4 {[%clk 0:26:16]}  Qf5 {[%clk 0:32:55]}
28. g4 {[%clk 0:23:23]}  Qd5 {[%clk 0:32:24]} 29. hxg6 {[%clk 0:22:05]}  fxg6 {[%clk 0:32:11]} 0-1

[Event "2026 European Womens Championship"]
[Site "Batumi, GE"]
[Date "2026.06.03"]
[Round "9"]
[White "Rakhmangulova, Anastasiya"]
[Black "Olde, Margareth"]
[Result "0-1"]
[Board "20"]
[TimeControl "5400+30"]
[WhiteFideId "14117479"]
[BlackFideId "4503082"]
[WhiteElo "2328"]
[BlackElo "2194"]
[WhiteTitle "WGM"]
[BlackTitle "WIM"]
[WhiteClock "0:47:10"]
[BlackClock "0:02:42"]
[Variant "Standard"]

1. e4 {[%clk 1:30:58]}  e5 {[%clk 1:30:51]} 2. Nf3 {[%clk 1:31:22]}  Nc6 {[%clk 1:31:15]} 3. Bc4 {[%clk 1:31:47]}  Bc5 {[%clk 1:31:13]}
4. d3 {[%clk 1:32:09]}  Nf6 {[%clk 1:28:23]} 5. O-O {[%clk 1:32:22]}  O-O {[%clk 1:24:34]} 6. c3 {[%clk 1:31:09]}  d6 {[%clk 1:22:29]}
7. b4 {[%clk 1:30:46]}  Bb6 {[%clk 1:22:52]} 8. a4 {[%clk 1:31:12]}  a5 {[%clk 1:23:14]} 9. b5 {[%clk 1:31:37]}  Ne7 {[%clk 1:23:23]}
10. Nbd2 {[%clk 1:31:39]}  Ng6 {[%clk 1:16:19]} 11. Ba3 {[%clk 1:22:46]}  Re8 {[%clk 1:12:35]} 12. Qb3 {[%clk 1:21:37]}  Be6 {[%clk 0:54:21]}
13. Ng5 {[%clk 1:16:12]}  d5 {[%clk 0:48:28]} 14. exd5 {[%clk 1:15:55]}  Bxd5 {[%clk 0:47:04]} 15. Nge4 {[%clk 1:13:32]}  Nxe4 {[%clk 0:38:52]}
16. dxe4 {[%clk 1:12:33]}  Be6 {[%clk 0:29:39]} 17. Bxe6 {[%clk 1:12:43]}  Rxe6 {[%clk 0:29:53]} 18. Rad1 {[%clk 1:11:08]}  Nf4 {[%clk 0:24:59]}
19. Nf3 {[%clk 1:09:53]}  Qf6 {[%clk 0:25:13]} 20. g3 {[%clk 0:57:10]}  Qg6 {[%clk 0:24:22]} 21. Qc4 {[%clk 0:52:58]}  Qg4 {[%clk 0:22:03]}
22. Rd3 {[%clk 0:45:59]}  Nxd3 {[%clk 0:14:54]} 23. Qxd3 {[%clk 0:46:08]}  Ree8 {[%clk 0:14:58]} 24. c4 {[%clk 0:43:29]}  Rad8 {[%clk 0:14:55]}
25. Qe2 {[%clk 0:43:53]}  Qd7 {[%clk 0:11:13]} 26. Bb2 {[%clk 0:39:42]}  Qd3 {[%clk 0:10:52]} 27. Re1 {[%clk 0:33:16]}  f6 {[%clk 0:08:50]}
28. Kg2 {[%clk 0:32:11]}  Bc5 {[%clk 0:08:29]} 29. g4 {[%clk 0:29:31]}  Bb4 {[%clk 0:06:12]} 30. Qxd3 {[%clk 0:29:56]}  Rxd3 {[%clk 0:06:39]}
31. Re2 {[%clk 0:30:20]}  Red8 {[%clk 0:05:52]} 32. g5 {[%clk 0:29:58]}  Ba3 {[%clk 0:05:23]} 33. Ba1 {[%clk 0:29:23]}  Rd1 {[%clk 0:04:25]}
34. Bc3 {[%clk 0:29:45]}  Rc1 {[%clk 0:03:46]} 35. Bxa5 {[%clk 0:29:54]}  Rxc4 {[%clk 0:03:21]} 36. h4 {[%clk 0:25:53]}  Bb4 {[%clk 0:02:53]}
37. Bxb4 {[%clk 0:26:18]}  Rxb4 {[%clk 0:03:20]} 38. Rc2 {[%clk 0:25:49]}  Rd7 {[%clk 0:03:14]} 39. Ra2 {[%clk 0:26:15]}  b6 {[%clk 0:02:07]}
40. a5 {[%clk 0:26:06]}  Rxb5 {[%clk 0:01:50]} 41. axb6 {[%clk 0:26:30]}  Rxb6 {[%clk 0:29:38]} 42. Ra8+ {[%clk 0:56:55]}  Kf7 {[%clk 0:30:05]}
43. h5 {[%clk 0:57:13]}  Rb4 {[%clk 0:25:41]} 44. Rh8 {[%clk 0:54:40]}  Rxe4 {[%clk 0:24:40]} 45. gxf6 {[%clk 0:52:58]}  Kxf6 {[%clk 0:22:10]}
46. Rxh7 {[%clk 0:53:21]}  Rd3 {[%clk 0:21:28]} 47. Nh2 {[%clk 0:53:41]}  c5 {[%clk 0:17:32]} 48. Rh8 {[%clk 0:52:28]}  c4 {[%clk 0:13:23]}
49. f3 {[%clk 0:52:26]}  Re2+ {[%clk 0:13:06]} 50. Kg3 {[%clk 0:52:51]}  c3 {[%clk 0:12:23]} 51. Ng4+ {[%clk 0:53:15]}  Kf7 {[%clk 0:12:16]}
52. Rc8 {[%clk 0:53:10]}  c2 {[%clk 0:04:56]} 53. Rxc2 {[%clk 0:51:14]}  Rxf3+ {[%clk 0:05:19]} 54. Kxf3 {[%clk 0:51:40]}  Rxc2 {[%clk 0:05:46]}
55. Nxe5+ {[%clk 0:52:06]}  Ke6 {[%clk 0:03:34]} 56. Ng4 {[%clk 0:51:38]}  Rc5 {[%clk 0:02:53]} 57. h6 {[%clk 0:51:50]}  g6 {[%clk 0:01:44]}
58. Kf4 {[%clk 0:51:25]}  Rf5+ {[%clk 0:01:07]} 59. Kg3 {[%clk 0:48:58]}  Rh5 {[%clk 0:01:24]} 60. Kf4 {[%clk 0:49:23]}  g5+ {[%clk 0:01:02]}
61. Kg3 {[%clk 0:49:10]}  Kf5 {[%clk 0:00:50]} 62. Ne3+ {[%clk 0:48:37]}  Kg6 {[%clk 0:01:14]} 63. Ng4 {[%clk 0:49:03]}  Rh4 {[%clk 0:01:20]}
64. Kf3 {[%clk 0:49:19]}  Rh3+ {[%clk 0:01:32]} 65. Kg2 {[%clk 0:49:24]}  Ra3 {[%clk 0:01:46]} 66. Kh2 {[%clk 0:49:42]}  Ra8 {[%clk 0:01:15]}
67. Kg3 {[%clk 0:49:38]}  Ra4 {[%clk 0:00:55]} 68. Kf3 {[%clk 0:47:40]}  Ra3+ {[%clk 0:01:02]} 69. Kg2 {[%clk 0:48:04]}  Rb3 {[%clk 0:01:05]}
70. Kf2 {[%clk 0:48:20]}  Rc3 {[%clk 0:01:23]} 71. Kg2 {[%clk 0:48:47]}  Ra3 {[%clk 0:01:52]} 72. Kh2 {[%clk 0:48:58]}  Rb3 {[%clk 0:00:55]}
73. Kg2 {[%clk 0:49:25]}  Ra3 {[%clk 0:01:14]} 74. Kh2 {[%clk 0:49:51]}  Kh5 {[%clk 0:00:35]} 75. h7 {[%clk 0:47:41]}  Ra8 {[%clk 0:01:04]}
76. Kg3 {[%clk 0:48:05]}  Ra3+ {[%clk 0:00:50]} 77. Kf2 {[%clk 0:48:00]}  Ra8 {[%clk 0:01:14]} 78. Kf3 {[%clk 0:48:23]}  Rf8+ {[%clk 0:01:16]}
79. Kg3 {[%clk 0:48:50]}  Kg6 {[%clk 0:00:55]} 80. Ne5+ {[%clk 0:49:00]}  Kxh7 {[%clk 0:01:13]} 81. Kg4 {[%clk 0:49:26]}  Kh6 {[%clk 0:01:33]}
82. Nd3 {[%clk 0:48:25]}  Rd8 {[%clk 0:01:34]} 83. Nc5 {[%clk 0:46:17]}  Rd4+ {[%clk 0:01:53]} 84. Kf3 {[%clk 0:46:43]}  Kh5 {[%clk 0:01:52]}
85. Ne6 {[%clk 0:47:01]}  Rd3+ {[%clk 0:02:08]} 86. Ke4 {[%clk 0:47:27]}  Rd1 {[%clk 0:02:26]} 87. Kf5 {[%clk 0:47:10]}  Rf1+ {[%clk 0:02:42]} 0-1

[Event "2026 European Womens Championship"]
[Site "Batumi, GE"]
[Date "2026.06.03"]
[Round "9"]
[White "Ibrahimova, Sabina"]
[Black "Iglesias, Yosha"]
[Result "0-1"]
[Board "21"]
[TimeControl "5400+30"]
[WhiteFideId "13403893"]
[BlackFideId "637823"]
[WhiteElo "2205"]
[BlackElo "2325"]
[WhiteTitle "WIM"]
[BlackTitle "FM"]
[WhiteClock "0:15:18"]
[BlackClock "0:37:30"]
[Variant "Standard"]

1. Nf3 {[%clk 1:29:06]}  d5 {[%clk 1:30:53]} 2. c4 {[%clk 1:29:21]}  c6 {[%clk 1:31:17]} 3. d4 {[%clk 1:29:22]}  Nf6 {[%clk 1:31:35]}
4. e3 {[%clk 1:29:33]}  Bf5 {[%clk 1:30:40]} 5. Nc3 {[%clk 1:29:26]}  a6 {[%clk 1:29:55]} 6. Qb3 {[%clk 1:24:06]}  b5 {[%clk 1:27:41]}
7. cxd5 {[%clk 1:17:56]}  cxd5 {[%clk 1:27:52]} 8. a4 {[%clk 1:13:29]}  b4 {[%clk 1:26:36]} 9. Na2 {[%clk 1:05:53]}  Nc6 {[%clk 1:16:54]}
10. Bd3 {[%clk 0:54:28]}  Na5 {[%clk 1:11:23]} 11. Qd1 {[%clk 0:54:18]}  Bxd3 {[%clk 1:11:26]} 12. Qxd3 {[%clk 0:54:36]}  b3 {[%clk 1:11:37]}
13. Nc3 {[%clk 0:54:29]}  e6 {[%clk 1:11:46]} 14. O-O {[%clk 0:53:50]}  Bb4 {[%clk 1:09:13]} 15. Bd2 {[%clk 0:50:23]}  O-O {[%clk 1:05:46]}
16. Ne5 {[%clk 0:44:57]}  Qb6 {[%clk 1:04:30]} 17. Qe2 {[%clk 0:28:08]}  Rfc8 {[%clk 1:00:45]} 18. f3 {[%clk 0:23:49]}  Nc4 {[%clk 0:57:33]}
19. Nxc4 {[%clk 0:23:14]}  Rxc4 {[%clk 0:57:48]} 20. Kh1 {[%clk 0:22:47]}  a5 {[%clk 0:37:11]} 21. Qd1 {[%clk 0:19:43]}  Bxc3 {[%clk 0:34:27]}
22. Bxc3 {[%clk 0:19:56]}  h5 {[%clk 0:33:02]} 23. Ra3 {[%clk 0:12:20]}  Rb8 {[%clk 0:33:04]} 24. Qe1 {[%clk 0:10:51]}  Qc6 {[%clk 0:31:13]}
25. Ra1 {[%clk 0:08:34]}  Rxa4 {[%clk 0:29:37]} 26. Rxa4 {[%clk 0:08:55]}  Qxa4 {[%clk 0:30:02]} 27. Bxa5 {[%clk 0:06:34]}  Rc8 {[%clk 0:30:21]}
28. Bc3 {[%clk 0:06:41]}  Qc4 {[%clk 0:29:49]} 29. Kg1 {[%clk 0:03:21]}  Qd3 {[%clk 0:28:33]} 30. Qc1 {[%clk 0:02:38]}  Ne8 {[%clk 0:26:58]}
31. Rd1 {[%clk 0:03:05]}  Rxc3 {[%clk 0:25:27]} 32. bxc3 {[%clk 0:03:15]}  b2 {[%clk 0:25:55]} 33. Qb1 {[%clk 0:03:21]}  Qxe3+ {[%clk 0:26:19]}
34. Kh1 {[%clk 0:01:00]}  Qxc3 {[%clk 0:26:42]} 35. Rd3 {[%clk 0:00:46]}  Qb4 {[%clk 0:26:15]} 36. Re3 {[%clk 0:00:37]}  Nd6 {[%clk 0:26:14]}
37. Re2 {[%clk 0:00:44]}  Nc4 {[%clk 0:26:00]} 38. Rc2 {[%clk 0:01:06]}  Qa3 {[%clk 0:24:17]} 39. Re2 {[%clk 0:01:20]}  Qc3 {[%clk 0:24:13]}
40. Rc2 {[%clk 0:01:12]}  Qxd4 {[%clk 0:24:14]} 41. h3 {[%clk 0:30:27]}  g6 {[%clk 0:54:10]} 42. Kh2 {[%clk 0:29:17]}  h4 {[%clk 0:47:30]}
43. Kh1 {[%clk 0:25:35]}  Na3 {[%clk 0:46:52]} 44. Qxb2 {[%clk 0:25:07]}  Qd1+ {[%clk 0:47:04]} 45. Kh2 {[%clk 0:25:33]}  Nxc2 {[%clk 0:47:22]}
46. Qb8+ {[%clk 0:25:48]}  Kh7 {[%clk 0:40:31]} 47. Qc7 {[%clk 0:24:29]}  Qd4 {[%clk 0:40:00]} 48. Qxc2 {[%clk 0:24:43]}  Qe5+ {[%clk 0:40:07]}
49. Kh1 {[%clk 0:24:32]}  d4 {[%clk 0:40:09]} 50. Qc6 {[%clk 0:18:00]}  Kg7 {[%clk 0:39:23]} 51. Qc4 {[%clk 0:18:00]}  Qe1+ {[%clk 0:38:58]}
52. Kh2 {[%clk 0:18:24]}  Qc3 {[%clk 0:39:15]} 53. Qe2 {[%clk 0:17:59]}  d3 {[%clk 0:39:30]} 54. Qe3 {[%clk 0:18:18]}  e5 {[%clk 0:36:49]}
55. Kh1 {[%clk 0:14:58]}  Qa1+ {[%clk 0:36:48]} 56. Kh2 {[%clk 0:15:19]}  Qd4 {[%clk 0:37:13]} 57. Qe1 {[%clk 0:15:18]}  d2 {[%clk 0:37:30]} 0-1

[Event "2026 European Womens Championship"]
[Site "Batumi, GE"]
[Date "2026.06.03"]
[Round "9"]
[White "Ivanytska, Liudmyla"]
[Black "Toncheva, Nadya"]
[Result "0-1"]
[Board "22"]
[TimeControl "5400+30"]
[WhiteFideId "14176211"]
[BlackFideId "2924056"]
[WhiteElo "2112"]
[BlackElo "2320"]
[BlackTitle "WGM"]
[WhiteClock "0:08:14"]
[BlackClock "0:02:01"]
[Variant "Standard"]

1. e4 {[%clk 1:30:58]}  e6 {[%clk 1:30:55]} 2. d4 {[%clk 1:31:25]}  d5 {[%clk 1:31:20]} 3. Nc3 {[%clk 1:31:51]}  Nf6 {[%clk 1:31:45]}
4. Bg5 {[%clk 1:32:08]}  dxe4 {[%clk 1:32:09]} 5. Nxe4 {[%clk 1:32:33]}  Be7 {[%clk 1:32:31]} 6. Nxf6+ {[%clk 1:32:53]}  Bxf6 {[%clk 1:32:56]}
7. Bxf6 {[%clk 1:32:57]}  Qxf6 {[%clk 1:33:20]} 8. Nf3 {[%clk 1:33:24]}  O-O {[%clk 1:27:03]} 9. Bd3 {[%clk 1:33:48]}  c5 {[%clk 1:25:36]}
10. c3 {[%clk 1:32:59]}  cxd4 {[%clk 1:23:51]} 11. Nxd4 {[%clk 1:32:02]}  e5 {[%clk 1:19:36]} 12. Ne2 {[%clk 1:32:08]}  Nd7 {[%clk 1:13:44]}
13. Qc2 {[%clk 1:30:13]}  g6 {[%clk 1:10:05]} 14. b4 {[%clk 1:30:03]}  Nb6 {[%clk 1:06:57]} 15. O-O {[%clk 1:30:09]}  Be6 {[%clk 1:05:56]}
16. Rfe1 {[%clk 1:18:04]}  Nd5 {[%clk 0:56:24]} 17. a3 {[%clk 1:17:28]}  Rac8 {[%clk 0:52:16]} 18. c4 {[%clk 1:17:46]}  Qg5 {[%clk 0:47:58]}
19. Qb2 {[%clk 1:13:06]}  Ne3 {[%clk 0:45:17]} 20. Ng3 {[%clk 1:13:27]}  Nxc4 {[%clk 0:45:12]} 21. Bxc4 {[%clk 1:13:49]}  Rxc4 {[%clk 0:45:22]}
22. Rxe5 {[%clk 1:13:07]}  Rc2 {[%clk 0:38:39]} 23. Qxc2 {[%clk 1:05:41]}  Qxe5 {[%clk 0:38:36]} 24. Rc1 {[%clk 1:05:45]}  h5 {[%clk 0:32:52]}
25. h3 {[%clk 1:05:51]}  h4 {[%clk 0:23:02]} 26. Nf1 {[%clk 1:04:38]}  Qg5 {[%clk 0:20:28]} 27. Ne3 {[%clk 0:56:17]}  Bxh3 {[%clk 0:18:53]}
28. Qc5 {[%clk 0:53:43]}  Qxc5 {[%clk 0:19:14]} 29. Rxc5 {[%clk 0:54:10]}  Be6 {[%clk 0:18:03]} 30. Rc7 {[%clk 0:54:18]}  Rb8 {[%clk 0:19:16]}
31. b5 {[%clk 0:52:58]}  Kg7 {[%clk 0:14:03]} 32. a4 {[%clk 0:50:20]}  Kf6 {[%clk 0:10:20]} 33. a5 {[%clk 0:47:53]}  Ke5 {[%clk 0:10:27]}
34. Kh2 {[%clk 0:41:37]}  g5 {[%clk 0:08:10]} 35. Rc5+ {[%clk 0:37:13]}  Kf4 {[%clk 0:07:12]} 36. Nd5+ {[%clk 0:36:50]}  Bxd5 {[%clk 0:07:10]}
37. Rxd5 {[%clk 0:37:19]}  f5 {[%clk 0:05:08]} 38. f3 {[%clk 0:36:06]}  Rc8 {[%clk 0:04:29]} 39. Rd4+ {[%clk 0:36:05]}  Ke3 {[%clk 0:04:45]}
40. Rd5 {[%clk 0:35:23]}  Kf4 {[%clk 0:05:07]} 41. Rd4+ {[%clk 0:35:48]}  Ke3 {[%clk 0:23:33]} 42. Rd5 {[%clk 1:05:55]}  g4 {[%clk 0:23:17]}
43. Rxf5 {[%clk 1:01:07]}  g3+ {[%clk 0:23:42]} 44. Kh3 {[%clk 1:01:34]}  Rc1 {[%clk 0:18:46]} 45. Rd5 {[%clk 0:51:30]}  Rh1 {[%clk 0:16:59]}
46. Kg4 {[%clk 0:51:56]}  Rh2 {[%clk 0:15:18]} 47. Rc5 {[%clk 0:44:51]}  Rxg2 {[%clk 0:15:03]} 48. Kxh4 {[%clk 0:45:10]}  Kf2 {[%clk 0:12:18]}
49. Rc2+ {[%clk 0:45:23]}  Kxf3 {[%clk 0:09:52]} 50. Rc3+ {[%clk 0:43:00]}  Kf2 {[%clk 0:10:19]} 51. Kg4 {[%clk 0:40:29]}  Rg1 {[%clk 0:06:43]}
52. Rf3+ {[%clk 0:30:06]}  Ke2 {[%clk 0:07:09]} 53. a6 {[%clk 0:19:48]}  b6 {[%clk 0:04:17]} 54. Rc3 {[%clk 0:15:45]}  g2 {[%clk 0:01:59]}
55. Kg3 {[%clk 0:16:01]}  Rb1 {[%clk 0:02:21]} 56. Kxg2 {[%clk 0:16:21]}  Rxb5 {[%clk 0:02:46]} 57. Rc7 {[%clk 0:16:45]}  Rg5 {[%clk 0:02:38]}
58. Kh3 {[%clk 0:16:06]}  Kd3 {[%clk 0:02:18]} 59. Rxa7 {[%clk 0:16:25]}  Ra5 {[%clk 0:02:43]} 60. Kg3 {[%clk 0:15:28]}  Kc4 {[%clk 0:03:01]}
61. Rc7+ {[%clk 0:14:19]}  Kb4 {[%clk 0:03:07]} 62. a7 {[%clk 0:14:19]}  b5 {[%clk 0:03:28]} 63. Kf3 {[%clk 0:14:07]}  Ka3 {[%clk 0:02:49]}
64. Rc3+ {[%clk 0:11:41]}  Kb2 {[%clk 0:02:56]} 65. Rc5 {[%clk 0:11:18]}  Ra3+ {[%clk 0:03:22]} 66. Ke2 {[%clk 0:10:13]}  b4 {[%clk 0:03:48]}
67. Rc7 {[%clk 0:09:13]}  b3 {[%clk 0:04:05]} 68. Kd2 {[%clk 0:09:37]}  Kb1 {[%clk 0:02:12]} 69. Rb7 {[%clk 0:09:42]}  b2 {[%clk 0:02:11]}
70. Kd1 {[%clk 0:09:44]}  Ra6 {[%clk 0:02:16]} 71. Kd2 {[%clk 0:09:57]}  Ka1 {[%clk 0:01:36]} 72. Kc2 {[%clk 0:08:14]}  Ra2 {[%clk 0:02:01]} 0-1

[Event "2026 European Womens Championship"]
[Site "Batumi, GE"]
[Date "2026.06.03"]
[Round "9"]
[White "Matnadze Bujiashvili, Ann"]
[Black "Khachatryan, Anna"]
[Result "1-0"]
[Board "23"]
[TimeControl "5400+30"]
[WhiteFideId "13601377"]
[BlackFideId "13310780"]
[WhiteElo "2310"]
[BlackElo "2154"]
[WhiteTitle "IM"]
[BlackTitle "WFM"]
[WhiteClock "0:14:03"]
[BlackClock "0:01:50"]
[Variant "Standard"]

1. d4 {[%clk 1:30:57]}  Nf6 {[%clk 1:30:50]} 2. c4 {[%clk 1:31:06]}  g6 {[%clk 1:31:02]} 3. Nf3 {[%clk 1:31:30]}  Bg7 {[%clk 1:30:20]}
4. g3 {[%clk 1:31:49]}  c6 {[%clk 1:28:59]} 5. Bg2 {[%clk 1:32:12]}  d5 {[%clk 1:29:26]} 6. O-O {[%clk 1:29:31]}  dxc4 {[%clk 1:29:27]}
7. a4 {[%clk 1:29:20]}  Be6 {[%clk 1:29:02]} 8. Ng5 {[%clk 1:27:18]}  Bd5 {[%clk 1:29:15]} 9. e4 {[%clk 1:27:12]}  h6 {[%clk 1:29:40]}
10. exd5 {[%clk 1:27:26]}  hxg5 {[%clk 1:30:06]} 11. dxc6 {[%clk 1:27:24]}  Nxc6 {[%clk 1:30:28]} 12. a5 {[%clk 1:24:27]}  Nxd4 {[%clk 1:26:30]}
13. a6 {[%clk 1:24:06]}  O-O {[%clk 1:13:11]} 14. axb7 {[%clk 1:23:30]}  Rb8 {[%clk 1:11:42]} 15. Bxg5 {[%clk 1:13:45]}  Nd5 {[%clk 1:06:22]}
16. Nc3 {[%clk 1:06:00]}  Nxc3 {[%clk 0:44:16]} 17. bxc3 {[%clk 1:06:28]}  Nb5 {[%clk 0:42:39]} 18. Qa4 {[%clk 0:54:57]}  Nd6 {[%clk 0:24:51]}
19. Rae1 {[%clk 0:38:07]}  Re8 {[%clk 0:10:50]} 20. Qxa7 {[%clk 0:36:27]}  Qc7 {[%clk 0:02:49]} 21. Rxe7 {[%clk 0:28:32]}  Rxe7 {[%clk 0:03:15]}
22. Bxe7 {[%clk 0:28:56]}  Rxb7 {[%clk 0:02:03]} 23. Bxb7 {[%clk 0:28:17]}  Qxe7 {[%clk 0:02:29]} 24. Qa8+ {[%clk 0:23:45]}  Kh7 {[%clk 0:02:31]}
25. Bd5 {[%clk 0:18:11]}  Bxc3 {[%clk 0:02:17]} 26. Qc6 {[%clk 0:18:19]}  Bd4 {[%clk 0:00:49]} 27. Bxc4 {[%clk 0:18:39]}  Ne4 {[%clk 0:01:00]}
28. Qd5 {[%clk 0:17:01]}  Ng5 {[%clk 0:00:40]} 29. Kg2 {[%clk 0:16:27]}  Bg7 {[%clk 0:00:44]} 30. h4 {[%clk 0:15:54]}  Ne6 {[%clk 0:00:59]}
31. h5 {[%clk 0:15:17]}  gxh5 {[%clk 0:00:46]} 32. Qxh5+ {[%clk 0:15:33]}  Kg8 {[%clk 0:01:14]} 33. Bxe6 {[%clk 0:15:16]}  Qxe6 {[%clk 0:01:41]}
34. Qf3 {[%clk 0:15:31]}  Qc8 {[%clk 0:01:11]} 35. Rd1 {[%clk 0:15:48]}  Qe8 {[%clk 0:01:09]} 36. Qd5 {[%clk 0:15:59]}  Bf6 {[%clk 0:01:26]}
37. Rd3 {[%clk 0:16:07]}  Kg7 {[%clk 0:01:48]} 38. Re3 {[%clk 0:16:16]}  Qc8 {[%clk 0:02:12]} 39. Rb3 {[%clk 0:16:18]}  Qg4 {[%clk 0:01:50]}
40. Rb7 {[%clk 0:16:11]}  Qg6 {[%clk 0:02:16]} 41. Rb5 {[%clk 0:16:24]}  Qc2 {[%clk 0:02:10]} 42. Rb4 {[%clk 0:14:17]}  Qg6 {[%clk 0:01:30]}
43. Qe4 {[%clk 0:14:37]}  Qh6 {[%clk 0:01:50]} 44. Qg4+ {[%clk 0:14:55]}  Bg5 {[%clk 0:01:44]} 45. Rc4 {[%clk 0:14:02]}  Kh7 {[%clk 0:01:50]}
46. Rc5 {[%clk 0:14:03]} 1-0